[Event "EYTCC Girls U18 2022"]
[Site "Thessaloniki"]
[Date "2022.07.12"]
[Round "1.1"]
[White "Ciolacu, Alessia-Mihaela"]
[Black "Buchholz, Maja"]
[Result "1-0"]
[ECO "D12"]
[WhiteElo "2163"]
[BlackElo "1879"]
[Annotator "ChessBase"]
[PlyCount "59"]
[EventDate "2022.07.12"]
[EventType "team-tourn"]
[EventCountry "GRE"]
[SourceTitle "playchess.com"]
[Source "ChessBase"]
[SourceQuality "1"]
[WhiteTeam "Romania"]
[BlackTeam "Germany"]
[WhiteTeamCountry "ROU"]
[BlackTeamCountry "GER"]
[TimeControl "40/5400+30:1800+30"]

1. d4 {[%emt 0:00:03]} d5 {[%emt 0:00:09]} 2. Nf3 {[%emt 0:00:12]} Nf6 {[%emt 0:00:05]} 3. c4 {[%emt 0:00:10]} c6 {[%emt 0:00:11]} 4. e3 {[%emt 0:00:08]} Bf5 {[%emt 0:00:17]} 5. Nc3 {[%emt 0:01:16]} e6 {[%emt 0:00:23]} 6. Nh4 {[%emt 0:00:34]} Be4 {[%emt 0:00:16]} 7. f3 {[%emt 0:00:11]} Bg6 {[%emt 0:00:07]} 8. Qb3 {[%emt 0:00:19]} Qc7 {[%emt 0:00:31]} 9. Bd2 {[%emt 0:13:23]} Nbd7 {[%emt 0:01:10]} 10. cxd5 {[%emt 0:01:48]} exd5 {[%emt 0:02:37]} 11. O-O-O {[%emt 0:08:29]} Be7 {[%emt 0:06:45]} 12. Nxg6 {[%emt 0:04:17]} hxg6 {[%emt 0:00:44]} 13. e4 {[%emt 0:01:11]} dxe4 {[%emt 0:13:57]} 14. fxe4 {[%emt 0:01:26]} b5 {[%emt 0:01:05]} 15. Bd3 {[%emt 0:05:39]} Nb6 {[%emt 0:07:45]} 16. Kb1 {[%emt 0:09:19]} O-O {[%emt 0:08:28]} 17. e5 {[%emt 0:15:22]} Nfd5 {[%emt 0:01:49]} 18. Nxd5 {[%emt 0:00:30]} Nxd5 {[%emt 0:00:30]} 19. Be4 {[%emt 0:01:21]} Rad8 {[%emt 0:02:05]} 20. h4 {[%emt 0:01:11]} a5 {[%emt 0:04:22]} 21. h5 {[%emt 0:02:58]} g5 {[%emt 0:05:12]} 22. Bc2 {[%emt 0:01:23]} f5 {[%emt 0:13:06]} 23. exf6 {[%emt 0:02:50]} gxf6 {[%emt 0:00:30]} 24. Qd3 {[%emt 0:01:29]} Bb4 {[%emt 0:02:44]} 25. Bc1 {[%emt 0:05:29]} a4 {[%emt 0:01:59]} 26. a3 {[%emt 0:03:08]} Bd6 {[%emt 0:01:28]} 27. Rde1 {[%emt 0:00:48]} Rde8 {[%emt 0:03:19]} 28. Qg6+ {[%emt 0:00:44]} Qg7 {[%emt 0:00:25]} 29. Rxe8 {[%emt 0:00:09]} Qxg6 {[%emt 0:01:06]} 30. Rxf8+ {[%emt 0:00:05]} 1-0

[Event "EYTCC Girls U18 2022"]
[Site "Thessaloniki"]
[Date "2022.07.12"]
[Round "1.2"]
[White "Werner, Rosalie"]
[Black "Obada, Ema"]
[Result "0-1"]
[ECO "C07"]
[WhiteElo "1783"]
[BlackElo "2042"]
[Annotator "ChessBase"]
[PlyCount "90"]
[EventDate "2022.07.12"]
[EventType "team-tourn"]
[EventCountry "GRE"]
[SourceTitle "playchess.com"]
[Source "ChessBase"]
[SourceQuality "1"]
[WhiteTeam "Germany"]
[BlackTeam "Romania"]
[WhiteTeamCountry "GER"]
[BlackTeamCountry "ROU"]
[TimeControl "40/5400+30:1800+30"]

1. e4 {[%emt 0:00:03]} e6 {[%emt 0:00:06]} 2. d4 {[%emt 0:00:06]} d5 {[%emt 0:00:05]} 3. Nd2 {[%emt 0:00:06]} c5 {[%emt 0:00:09]} 4. exd5 {[%emt 0:00:30]} Qxd5 {[%emt 0:00:07]} 5. Ngf3 {[%emt 0:00:21]} cxd4 {[%emt 0:00:16]} 6. Bc4 {[%emt 0:00:12]} Qd6 {[%emt 0:00:11]} 7. O-O {[%emt 0:00:09]} Nf6 {[%emt 0:00:11]} 8. Nb3 {[%emt 0:00:18]} Nc6 {[%emt 0:00:20]} 9. Nbxd4 {[%emt 0:00:45]} Nxd4 {[%emt 0:00:22]} 10. Nxd4 {[%emt 0:02:28]} Be7 {[%emt 0:00:35]} 11. Be3 {[%emt 0:01:18]} O-O {[%emt 0:01:38]} 12. Qe2 {[%emt 0:02:03]} a6 {[%emt 0:04:42]} 13. a4 {[%emt 0:03:13]} Qc7 {[%emt 0:04:05]} 14. Nb3 {[%emt 0:07:26]} Bd7 {[%emt 0:03:53]} 15. a5 {[%emt 0:10:10]} Rac8 {[%emt 0:12:37]} 16. Nd2 {[%emt 0:03:57]} Bd6 {[%emt 0:29:59]} 17. h3 {[%emt 0:05:42]} Bh2+ {[%emt 0:04:06]} 18. Kh1 {[%emt 0:02:57]} Bf4 {[%emt 0:00:09]} 19. Bb6 {[%emt 0:19:08]} Qc6 {[%emt 0:08:03]} 20. b3 {[%emt 0:02:53]} e5 {[%emt 0:05:14]} 21. Nf3 {[%emt 0:05:34]} Rfe8 {[%emt 0:03:28]} 22. Rfe1 {[%emt 0:01:45]} Bf5 {[%emt 0:00:55]} 23. Kg1 {[%emt 0:01:53]} Ne4 {[%emt 0:02:36]} 24. Be3 {[%emt 0:11:46]} Nd6 {[%emt 0:01:41]} 25. Ra4 {[%emt 0:05:24]} Be4 {[%emt 0:02:33]} 26. Rb4 {[%emt 0:03:51]} Qd7 {[%emt 0:04:18]} 27. Rd1 {[%emt 0:02:33]} Qe7 {[%emt 0:01:32]} 28. c3 {[%emt 0:02:37]} Nxc4 {[%emt 0:03:46]} 29. Rxc4 {[%emt 0:00:36]} Rxc4 {[%emt 0:00:53]} 30. Qxc4 {[%emt 0:00:37]} Bxf3 {[%emt 0:00:34]} 31. gxf3 {[%emt 0:01:09]} Qg5+ {[%emt 0:00:21]} 32. Kf1 {[%emt 0:00:25]} Bxe3 {[%emt 0:00:26]} 33. fxe3 {[%emt 0:00:48]} Qxe3 {[%emt 0:00:31]} 34. Qd3 {[%emt 0:00:37]} Qf4 {[%emt 0:02:51]} 35. Kg2 {[%emt 0:00:19]} h6 {[%emt 0:01:26]} 36. Qe4 {[%emt 0:01:27]} Qg5+ {[%emt 0:01:20]} 37. Kf2 {[%emt 0:01:23]} Qe7 {[%emt 0:00:51]} 38. Qd5 {[%emt 0:00:54]} Qh4+ {[%emt 0:01:31]} 39. Kg2 {[%emt 0:00:18]} Qg5+ {[%emt 0:00:06]} 40. Kf2 {[%emt 0:00:00]} Qf4 {[%emt 0:00:00]} 41. Qd7 {[%emt 0:06:00]} Re6 {[%emt 0:01:28]} 42. Qxb7 {[%emt 0:09:01]} e4 {[%emt 0:00:21]} 43. Qc8+ {[%emt 0:01:17]} Kh7 {[%emt 0:00:06]} 44. Qc4 {[%emt 0:00:29]} Qxf3+ {[%emt 0:00:28]} 45. Ke1 {[%emt 0:00:11]} e3 {[%emt 0:00:57]} 0-1

[Event "EYTCC Girls U18 2022"]
[Site "Thessaloniki"]
[Date "2022.07.12"]
[Round "1.3"]
[White "Kara, Gulce Nehir"]
[Black "Juhasz, Judit"]
[Result "1/2-1/2"]
[ECO "E60"]
[WhiteElo "1907"]
[BlackElo "2037"]
[Annotator "ChessBase"]
[PlyCount "68"]
[EventDate "2022.07.12"]
[EventType "team-tourn"]
[EventCountry "GRE"]
[SourceTitle "playchess.com"]
[Source "ChessBase"]
[SourceQuality "1"]
[WhiteTeam "Turkey"]
[BlackTeam "Hungary"]
[WhiteTeamCountry "TUR"]
[BlackTeamCountry "HUN"]
[TimeControl "40/5400+30:1800+30"]

1. d4 {[%emt 0:00:04]} Nf6 {[%emt 0:00:06]} 2. c4 {[%emt 0:00:15]} g6 {[%emt 0:00:07]} 3. h4 {[%emt 0:00:09]} h5 {[%emt 0:01:36]} 4. Nc3 {[%emt 0:01:16]} Bg7 {[%emt 0:01:14]} 5. e4 {[%emt 0:02:35]} d6 {[%emt 0:00:05]} 6. Be2 {[%emt 0:06:52]} Nbd7 {[%emt 0:04:50]} 7. Nf3 {[%emt 0:09:51]} c5 {[%emt 0:03:46]} 8. d5 {[%emt 0:01:48]} Ng4 {[%emt 0:01:49]} 9. Qc2 {[%emt 0:07:37]} a6 {[%emt 0:05:10]} 10. a4 {[%emt 0:01:59]} Nde5 {[%emt 0:01:47]} 11. Ng5 {[%emt 0:03:04]} Nh6 {[%emt 0:02:17]} 12. f3 {[%emt 0:07:36]} e6 {[%emt 0:12:22]} 13. Be3 {[%emt 0:10:37]} exd5 {[%emt 0:04:24]} 14. Nxd5 {[%emt 0:00:56]} Be6 {[%emt 0:02:46]} 15. Nf4 {[%emt 0:05:19]} Qe7 {[%emt 0:06:54]} 16. Rd1 {[%emt 0:06:34]} Rd8 {[%emt 0:13:46]} 17. Bd2 {[%emt 0:06:11]} O-O {[%emt 0:06:30]} 18. Bc3 {[%emt 0:03:22]} Bc8 {[%emt 0:10:42]} 19. Nd5 {[%emt 0:06:39]} Qd7 {[%emt 0:02:12]} 20. f4 {[%emt 0:04:43]} Neg4 {[%emt 0:01:58]} 21. e5 {[%emt 0:00:20]} Rde8 {[%emt 0:04:03]} 22. Ne4 {[%emt 0:05:17]} Qf5 {[%emt 0:07:03]} 23. Bd3 {[%emt 0:00:58]} Qd7 {[%emt 0:00:18]} 24. Be2 {[%emt 0:05:41]} Qf5 {[%emt 0:00:04]} 25. O-O {[%emt 0:00:54]} dxe5 {[%emt 0:05:13]} 26. fxe5 {[%emt 0:00:14]} Qe6 {[%emt 0:00:48]} 27. Nxc5 {[%emt 0:02:29]} Qc6 {[%emt 0:00:12]} 28. Ne4 {[%emt 0:00:29]} Bf5 {[%emt 0:01:20]} 29. Bd3 {[%emt 0:00:31]} Bxe5 {[%emt 0:00:23]} 30. Bb4 {[%emt 0:00:35]} Bd4+ {[%emt 0:01:05]} 31. Kh1 {[%emt 0:00:03]} Ne3 {[%emt 0:00:25]} 32. Nxe3 {[%emt 0:00:18]} Bxe4 {[%emt 0:00:03]} 33. Bxf8 {[%emt 0:01:04]} Bxe3 {[%emt 0:00:42]} 34. Bxh6 {[%emt 0:00:33]} Bxh6 {[%emt 0:00:34]} 1/2-1/2

[Event "EYTCC Girls U18 2022"]
[Site "Thessaloniki"]
[Date "2022.07.12"]
[Round "1.4"]
[White "Sulyok, Eszter"]
[Black "Kayis, Gulcan Sena"]
[Result "1-0"]
[ECO "A28"]
[WhiteElo "2091"]
[BlackElo "1682"]
[Annotator "ChessBase"]
[PlyCount "51"]
[EventDate "2022.07.12"]
[EventType "team-tourn"]
[EventCountry "GRE"]
[SourceTitle "playchess.com"]
[Source "ChessBase"]
[SourceQuality "1"]
[WhiteTeam "Hungary"]
[BlackTeam "Turkey"]
[WhiteTeamCountry "HUN"]
[BlackTeamCountry "TUR"]
[TimeControl "40/5400+30:1800+30"]

1. c4 {[%emt 0:00:06]} e5 {[%emt 0:00:14]} 2. e3 {[%emt 0:00:24]} Nc6 {[%emt 0:00:19]} 3. a3 {[%emt 0:00:09]} Nf6 {[%emt 0:02:03]} 4. Qc2 {[%emt 0:00:11]} d6 {[%emt 0:03:01]} 5. Nc3 {[%emt 0:00:34]} g6 {[%emt 0:02:24]} 6. Nf3 {[%emt 0:02:50]} Bg7 {[%emt 0:01:29]} 7. Be2 {[%emt 0:00:15]} O-O {[%emt 0:02:22]} 8. O-O {[%emt 0:00:11]} Nd7 {[%emt 0:04:37]} 9. b4 {[%emt 0:10:55]} f5 {[%emt 0:03:40]} 10. b5 {[%emt 0:06:25]} Ne7 {[%emt 0:07:10]} 11. d4 {[%emt 0:04:18]} e4 {[%emt 0:12:25]} 12. Nd2 {[%emt 0:15:30]} g5 {[%emt 0:04:31]} 13. f3 {[%emt 0:06:51]} exf3 {[%emt 0:05:29]} 14. Nxf3 {[%emt 0:02:51]} Ng6 {[%emt 0:04:23]} 15. Bd3 {[%emt 0:02:23]} Nb8 {[%emt 0:06:33]} 16. Bb2 {[%emt 0:09:07]} Bd7 {[%emt 0:07:49]} 17. Rae1 {[%emt 0:01:56]} h6 {[%emt 0:06:45]} 18. Nd2 {[%emt 0:01:24]} Ne7 {[%emt 0:00:58]} 19. Nd5 {[%emt 0:04:17]} Nxd5 {[%emt 0:05:09]} 20. cxd5 {[%emt 0:00:08]} Qc8 {[%emt 0:00:19]} 21. e4 {[%emt 0:01:43]} fxe4 {[%emt 0:05:01]} 22. Nxe4 {[%emt 0:02:35]} Qd8 {[%emt 0:03:19]} 23. Ng3 {[%emt 0:02:32]} c6 {[%emt 0:05:56]} 24. dxc6 {[%emt 0:03:11]} bxc6 {[%emt 0:00:13]} 25. Nh5 {[%emt 0:00:09]} Rxf1+ {[%emt 0:00:52]} 26. Rxf1 {[%emt 0:00:04]} 1-0

[Event "EYTCC Girls U18 2022"]
[Site "Thessaloniki"]
[Date "2022.07.12"]
[Round "1.5"]
[White "Ziegenfuss, Antonia"]
[Black "Sheikh, Anum"]
[Result "1-0"]
[ECO "D17"]
[WhiteElo "2170"]
[BlackElo "1799"]
[Annotator "ChessBase"]
[PlyCount "71"]
[EventDate "2022.07.12"]
[EventType "team-tourn"]
[EventCountry "GRE"]
[SourceTitle "playchess.com"]
[Source "ChessBase"]
[SourceQuality "1"]
[WhiteTeam "Germany"]
[BlackTeam "England"]
[WhiteTeamCountry "GER"]
[BlackTeamCountry "ENG"]
[TimeControl "40/5400+30:1800+30"]

1. d4 {[%emt 0:00:03]} d5 {[%emt 0:00:04]} 2. c4 {[%emt 0:00:09]} c6 {[%emt 0:00:03]} 3. Nc3 {[%emt 0:01:06]} Nf6 {[%emt 0:00:06]} 4. Nf3 {[%emt 0:04:06]} dxc4 {[%emt 0:02:13]} 5. a4 {[%emt 0:01:28]} Bf5 {[%emt 0:02:30]} 6. Ne5 {[%emt 0:02:09]} e6 {[%emt 0:05:18]} 7. f3 {[%emt 0:02:33]} h6 {[%emt 0:08:25]} 8. e4 {[%emt 0:01:43]} Bh7 {[%emt 0:00:08]} 9. Bxc4 {[%emt 0:02:37]} Nbd7 {[%emt 0:02:02]} 10. Nxd7 {[%emt 0:10:24]} Qxd7 {[%emt 0:05:35]} 11. Be3 {[%emt 0:06:27]} Be7 {[%emt 0:04:33]} 12. O-O {[%emt 0:03:34]} O-O {[%emt 0:00:11]} 13. Qb3 {[%emt 0:02:12]} Ne8 {[%emt 0:06:32]} 14. Rfd1 {[%emt 0:07:38]} Nd6 {[%emt 0:03:00]} 15. Bf1 {[%emt 0:01:08]} Kh8 {[%emt 0:02:33]} 16. Rac1 {[%emt 0:08:36]} f5 {[%emt 0:10:55]} 17. d5 {[%emt 0:04:47]} e5 {[%emt 0:05:30]} 18. dxc6 {[%emt 0:04:47]} bxc6 {[%emt 0:00:13]} 19. Bc5 {[%emt 0:02:12]} Qc7 {[%emt 0:05:53]} 20. Qe6 {[%emt 0:06:12]} Nc8 {[%emt 0:01:03]} 21. Bxe7 {[%emt 0:05:21]} Nxe7 {[%emt 0:10:14]} 22. a5 {[%emt 0:07:01]} Rf6 {[%emt 0:04:22]} 23. Qd7 {[%emt 0:01:19]} Rc8 {[%emt 0:08:12]} 24. Qxc7 {[%emt 0:01:19]} Rxc7 {[%emt 0:00:04]} 25. Rd8+ {[%emt 0:00:30]} Bg8 {[%emt 0:00:27]} 26. Bc4 {[%emt 0:02:26]} Rc8 {[%emt 0:00:29]} 27. Rcd1 {[%emt 0:01:03]} Rxd8 {[%emt 0:00:30]} 28. Rxd8 {[%emt 0:00:30]} Kh7 {[%emt 0:00:30]} 29. Bxg8+ {[%emt 0:00:30]} Nxg8 {[%emt 0:00:30]} 30. Rd7 {[%emt 0:00:30]} a6 {[%emt 0:00:30]} 31. Kf2 {[%emt 0:00:30]} Kg6 {[%emt 0:04:19]} 32. Ra7 {[%emt 0:04:10]} c5 {[%emt 0:03:09]} 33. Rc7 {[%emt 0:04:01]} Rd6 {[%emt 0:02:56]} 34. exf5+ {[%emt 0:02:15]} Kxf5 {[%emt 0:01:37]} 35. Ne4 {[%emt 0:00:37]} Rd3 {[%emt 0:01:36]} 36. Rxg7 {[%emt 0:00:58]} 1-0

[Event "EYTCC Girls U18 2022"]
[Site "Thessaloniki"]
[Date "2022.07.12"]
[Round "1.6"]
[White "Pert, Nina"]
[Black "Bashylina, Luisa"]
[Result "0-1"]
[ECO "B90"]
[WhiteElo "1703"]
[BlackElo "2041"]
[Annotator "ChessBase"]
[PlyCount "59"]
[EventDate "2022.07.12"]
[EventType "team-tourn"]
[EventCountry "GRE"]
[SourceTitle "playchess.com"]
[Source "ChessBase"]
[SourceQuality "1"]
[WhiteTeam "England"]
[BlackTeam "Germany"]
[WhiteTeamCountry "ENG"]
[BlackTeamCountry "GER"]
[TimeControl "40/5400+30:1800+30"]

1. e4 {[%emt 0:00:08]} c5 {[%emt 0:00:05]} 2. Nf3 {[%emt 0:00:10]} d6 {[%emt 0:00:04]} 3. d4 {[%emt 0:00:23]} cxd4 {[%emt 0:00:06]} 4. Nxd4 {[%emt 0:00:08]} Nf6 {[%emt 0:00:04]} 5. Nc3 {[%emt 0:00:30]} a6 {[%emt 0:00:03]} 6. Bd3 {[%emt 0:00:52]} e5 {[%emt 0:02:19]} 7. Nde2 {[%emt 0:00:39]} Be7 {[%emt 0:01:50]} 8. O-O {[%emt 0:01:03]} b5 {[%emt 0:01:49]} 9. Ng3 {[%emt 0:02:55]} O-O {[%emt 0:02:09]} 10. Bg5 {[%emt 0:05:40]} Be6 {[%emt 0:05:03]} 11. Nd5 {[%emt 0:05:41]} Nxd5 {[%emt 0:03:32]} 12. exd5 {[%emt 0:00:19]} Bxg5 {[%emt 0:01:27]} 13. dxe6 {[%emt 0:00:16]} fxe6 {[%emt 0:01:03]} 14. Qg4 {[%emt 0:00:42]} Ra7 {[%emt 0:15:09]} 15. Qxe6+ {[%emt 0:01:09]} Raf7 {[%emt 0:08:50]} 16. Ne4 {[%emt 0:02:53]} Be7 {[%emt 0:02:36]} 17. Rad1 {[%emt 0:06:37]} Kh8 {[%emt 0:04:14]} 18. c4 {[%emt 0:06:08]} b4 {[%emt 0:11:25]} 19. c5 {[%emt 0:02:18]} d5 {[%emt 0:02:00]} 20. Bc4 {[%emt 0:00:41]} d4 {[%emt 0:08:27]} 21. Qxe5 {[%emt 0:05:08]} Nc6 {[%emt 0:03:47]} 22. Qd5 {[%emt 0:02:34]} Qe8 {[%emt 0:00:42]} 23. Bxa6 {[%emt 0:07:29]} Rf5 {[%emt 0:01:50]} 24. Qc4 {[%emt 0:01:56]} Qg6 {[%emt 0:05:05]} 25. Rc1 {[%emt 0:21:21]} Ne5 {[%emt 0:02:25]} 26. Qe2 {[%emt 0:01:44]} Nf3+ {[%emt 0:02:01]} 27. Kh1 {[%emt 0:00:09]} Rh5 {[%emt 0:02:29]} 28. h3 {[%emt 0:06:03]} Qg4 {[%emt 0:01:53]} 29. Bc8 {[%emt 0:01:28]} Qxc8 {[%emt 0:01:27]} 30. Qd1 {[%emt 0:00:14]} 0-1

[Event "EYTCC Girls U18 2022"]
[Site "Thessaloniki"]
[Date "2022.07.12"]
[Round "1.7"]
[White "Bondar, Daria"]
[Black "Wikar, Martyna"]
[Result "0-1"]
[ECO "B32"]
[WhiteElo "1566"]
[BlackElo "2208"]
[Annotator "ChessBase"]
[PlyCount "44"]
[EventDate "2022.07.12"]
[EventType "team-tourn"]
[EventCountry "GRE"]
[SourceTitle "playchess.com"]
[Source "ChessBase"]
[SourceQuality "1"]
[WhiteTeam "Ukraine"]
[BlackTeam "Poland"]
[WhiteTeamCountry "UKR"]
[BlackTeamCountry "POL"]
[TimeControl "40/5400+30:1800+30"]

1. e4 {[%emt 0:00:02]} c5 {[%emt 0:00:07]} 2. Nf3 {[%emt 0:00:06]} Nc6 {[%emt 0:00:05]} 3. d4 {[%emt 0:00:05]} cxd4 {[%emt 0:00:03]} 4. Nxd4 {[%emt 0:00:03]} e5 {[%emt 0:00:07]} 5. Nb5 {[%emt 0:00:08]} d6 {[%emt 0:00:07]} 6. c4 {[%emt 0:00:22]} Be6 {[%emt 0:00:22]} 7. Bd3 {[%emt 0:00:21]} g6 {[%emt 0:02:42]} 8. O-O {[%emt 0:00:42]} a6 {[%emt 0:01:26]} 9. N5c3 {[%emt 0:00:31]} Bg7 {[%emt 0:01:18]} 10. Nd5 {[%emt 0:01:17]} Nge7 {[%emt 0:07:40]} 11. Be3 {[%emt 0:00:53]} Bxd5 {[%emt 0:07:06]} 12. cxd5 {[%emt 0:00:35]} Nd4 {[%emt 0:00:06]} 13. Bxd4 {[%emt 0:08:23]} exd4 {[%emt 0:01:07]} 14. Nd2 {[%emt 0:02:19]} O-O {[%emt 0:00:20]} 15. Qb3 {[%emt 0:10:28]} Rb8 {[%emt 0:01:12]} 16. a4 {[%emt 0:04:06]} g5 {[%emt 0:01:30]} 17. a5 {[%emt 0:18:27]} Ng6 {[%emt 0:01:53]} 18. Ra4 {[%emt 0:05:46]} g4 {[%emt 0:05:29]} 19. Nc4 {[%emt 0:05:06]} Nf4 {[%emt 0:09:57]} 20. Rb4 {[%emt 0:08:54]} Qh4 {[%emt 0:09:00]} 21. Nxd6 {[%emt 0:12:43]} Be5 {[%emt 0:00:32]} 22. g3 {[%emt 0:10:17]} Qh3 {[%emt 0:00:13]} 0-1

[Event "EYTCC Girls U18 2022"]
[Site "Thessaloniki"]
[Date "2022.07.12"]
[Round "1.8"]
[White "Marcinczyk, Monika"]
[Black "Russeva, Viktoria"]
[Result "1-0"]
[ECO "B90"]
[WhiteElo "1991"]
[BlackElo "1866"]
[Annotator "ChessBase"]
[PlyCount "121"]
[EventDate "2022.07.12"]
[EventType "team-tourn"]
[EventCountry "GRE"]
[SourceTitle "playchess.com"]
[Source "ChessBase"]
[SourceQuality "1"]
[WhiteTeam "Poland"]
[BlackTeam "Ukraine"]
[WhiteTeamCountry "POL"]
[BlackTeamCountry "UKR"]
[TimeControl "40/5400+30:1800+30"]

1. e4 {[%emt 0:30:31]} c5 {[%emt 0:00:06]} 2. Nf3 {[%emt 0:00:09]} d6 {[%emt 0:00:05]} 3. d4 {[%emt 0:00:05]} cxd4 {[%emt 0:00:05]} 4. Nxd4 {[%emt 0:00:04]} Nf6 {[%emt 0:00:07]} 5. Nc3 {[%emt 0:00:08]} a6 {[%emt 0:00:04]} 6. Be3 {[%emt 0:03:05]} e5 {[%emt 0:00:58]} 7. Nf3 {[%emt 0:01:27]} Be7 {[%emt 0:00:59]} 8. h3 {[%emt 0:00:23]} h5 {[%emt 0:05:48]} 9. Bc4 {[%emt 0:03:54]} Nbd7 {[%emt 0:11:58]} 10. Ng5 {[%emt 0:14:05]} O-O {[%emt 0:04:03]} 11. a4 {[%emt 0:25:50]} Nc5 {[%emt 0:11:30]} 12. O-O {[%emt 0:03:37]} Ne6 {[%emt 0:03:57]} 13. Nxe6 {[%emt 0:06:59]} Bxe6 {[%emt 0:00:09]} 14. Bxe6 {[%emt 0:00:11]} fxe6 {[%emt 0:00:04]} 15. a5 {[%emt 0:08:33]} d5 {[%emt 0:04:22]} 16. exd5 {[%emt 0:02:23]} exd5 {[%emt 0:00:17]} 17. Bg5 {[%emt 0:01:36]} d4 {[%emt 0:04:08]} 18. Bxf6 {[%emt 0:02:03]} Rxf6 {[%emt 0:01:38]} 19. Ne4 {[%emt 0:00:34]} Rf4 {[%emt 0:20:29]} 20. Qd3 Qd5 21. Ng3 Qf7 {[%emt 0:05:48]} 22. Ne2 {[%emt 0:03:14]} Rf5 {[%emt 0:01:49]} 23. Qe4 {[%emt 0:00:26]} Rf8 {[%emt 0:02:58]} 24. f3 {[%emt 0:01:45]} Bg5 {[%emt 0:02:38]} 25. Kh1 {[%emt 0:04:49]} Re8 {[%emt 0:09:31]} 26. Ra3 {[%emt 0:01:59]} Rf6 {[%emt 0:03:47]} 27. Rb3 {[%emt 0:04:00]} Re7 {[%emt 0:00:38]} 28. Rd3 {[%emt 0:00:43]} Rc6 {[%emt 0:02:41]} 29. c3 {[%emt 0:00:23]} Be3 {[%emt 0:00:59]} 30. Ng3 {[%emt 0:00:43]} g6 {[%emt 0:01:52]} 31. Rfd1 {[%emt 0:00:49]} Rf6 {[%emt 0:01:12]} 32. Rxe3 {[%emt 0:01:04]} dxe3 {[%emt 0:00:30]} 33. Qxe3 {[%emt 0:00:10]} Rc6 {[%emt 0:03:46]} 34. Qg5 {[%emt 0:01:00]} Qf6 {[%emt 0:01:57]} 35. Qd2 {[%emt 0:00:43]} Rc8 {[%emt 0:00:15]} 36. Ne4 {[%emt 0:00:21]} Qf8 {[%emt 0:03:46]} 37. Qg5 {[%emt 0:01:07]} Rc6 {[%emt 0:00:25]} 38. Rd5 {[%emt 0:00:28]} Kg7 {[%emt 0:01:24]} 39. Rxe5 {[%emt 0:01:51]} Rxe5 {[%emt 0:00:04]} 40. Qxe5+ {[%emt 0:00:07]} Kg8 {[%emt 0:00:45]} 41. b4 {[%emt 0:02:20]} Qd8 {[%emt 0:05:24]} 42. c4 {[%emt 0:04:55]} Qc7 {[%emt 0:04:43]} 43. Qd5+ {[%emt 0:05:09]} Qf7 {[%emt 0:02:07]} 44. Qd8+ {[%emt 0:03:32]} Kg7 {[%emt 0:01:34]} 45. Qd4+ {[%emt 0:03:39]} Kg8 {[%emt 0:01:19]} 46. Nc5 {[%emt 0:03:29]} Qe7 {[%emt 0:02:29]} 47. Qd5+ {[%emt 0:02:40]} Kg7 {[%emt 0:02:01]} 48. Kh2 {[%emt 0:01:57]} Qc7+ {[%emt 0:04:50]} 49. Kg1 {[%emt 0:01:01]} Qe7 {[%emt 0:00:26]} 50. Kf1 {[%emt 0:03:12]} Kh6 {[%emt 0:02:40]} 51. Qe4 {[%emt 0:00:39]} Qxe4 {[%emt 0:04:25]} 52. fxe4 {[%emt 0:00:06]} Kg5 {[%emt 0:00:59]} 53. Kf2 {[%emt 0:01:04]} Kf4 {[%emt 0:01:43]} 54. g3+ {[%emt 0:00:11]} Ke5 {[%emt 0:00:16]} 55. Ke3 {[%emt 0:00:08]} b6 {[%emt 0:01:59]} 56. axb6 {[%emt 0:00:26]} Kd6 {[%emt 0:00:50]} 57. e5+ {[%emt 0:00:37]} Ke7 {[%emt 0:00:54]} 58. b7 {[%emt 0:02:05]} Rb6 {[%emt 0:00:04]} 59. Nxa6 {[%emt 0:00:39]} Rxb7 {[%emt 0:00:08]} 60. b5 {[%emt 0:00:45]} Rb6 {[%emt 0:00:36]} 61. Ke4 {[%emt 0:00:35]} 1-0